Cogmind - Beta 14 @@@ ROGUE MODE // 2024.10.17 @ 20:16:24 Player: star Result: Destroyed by BC-6KA(R) with Subdweller Machine Gun Performance ------------- Evolutions (0) 0 Regions Visited (2) 400 Robots Destroyed (17) 85 Value Destroyed (586) 586 Prototype IDs (0) 0 Alien Tech Used (0) 0 Bonus (0) 0 TOTAL SCORE: 1071 Bonus ------- None Cogmind --------- Core Integrity 0/250 Matter 212/300 Energy 241/265 System Corruption 1% Temperature Cool (0) Movement Rolling (90) Location -10/Subcaves Parts ------- > --- POWER (1) -------- Improved Ion Engine > --- PROPULSION (2) --- Armored Wheel Armored Wheel > --- UTILITY (2) ------ Medium Storage Unit > --- WEAPON (2) ------- Mini Grenade Launcher Mini Grenade Launcher > --- INVENTORY (10) --- Improved Ion Engine Small Matter Pod (50) High-capacity Matter Pod (127) Targeting Computer ECM Suite EM Pulse Gun Subdweller Laser Peak State ------------ > --- POWER ------------ Improved Ion Engine > --- PROPULSION ------- Armored Wheel Armored Wheel > --- UTILITY ---------- Small Storage Unit Weapon Shielding > --- WEAPON ----------- Light Assault Rifle Light Assault Rifle > --- INVENTORY -------- Light Ion Engine Improved Ion Engine Compact Wheel Compact Wheel Armored Wheel Armored Wheel Mini Grenade Launcher Mini Grenade Launcher [Rating: 11] Favorites ----------- Power Improved Ion Engine Engine Improved Ion Engine Propulsion Armored Wheel Wheel Armored Wheel Utility Medium Storage Unit Storage Medium Storage Unit Protection Weapon Shielding Weapon Light Assault Rifle Energy Gun EM Pulse Gun Ballistic Gun Light Assault Rifle Launcher Mini Grenade Launcher Build | -11 -10 -10 ------- Run | Yrd Mat Sub Slots Evolved . | . . . Power . | . . . Propulsion . | . . . Utility . | . . . Weapon . | . . . Parts Attached 21 | 6 9 6 Power 2 | 1 1 . Engine 2 | 1 1 . Core . | . . . Reactor . | . . . Propulsion 6 | 2 4 . Treads . | . . . Leg . | . . . Wheel 6 | 2 4 . Hover . | . . . Flight . | . . . Utility 3 | 1 2 . Device . | . . . Storage 2 | 1 1 . Processor . | . . . Hackware . | . . . Protection 1 | . 1 . Artifact . | . . . Weapon 10 | 2 2 6 Energy Gun 2 | . 1 1 Energy Cannon . | . . . Ballistic Gun 4 | 2 . 2 Ballistic Cannon . | . . . Launcher 4 | . 1 3 Special Weapon . | . . . Impact Weapon . | . . . Slashing Weapon . | . . . Piercing Weapon . | . . . Special Melee Weapon . | . . . Unidentified Prototypes . | . . . Parts Lost 3 | . 3 . Power . | . . . Propulsion 2 | . 2 . Utility 1 | . 1 . Weapon . | . . . Highest Loss Streak 2 | . 2 . To Critical Strikes . | . . . Average Slot Usage (%) 89 | . 91 85 Engine 14 | . 14 14 Wheel 25 | . 24 28 Storage 14 | . 14 14 Protection 6 | . 8 . Energy Gun 7 | . 4 13 Ballistic Gun 20 | . 23 12 Peak Build Rating 11 | 6 11 11 Average Rating 9 | 4 10 10 On Entrance 5 | . 6 10 Naked Turns . | . . . Heaviest Build 23 | 10 21 23 Greatest Support 32 | 32 32 24 Greatest Overweight (x) 1 | . 1 . Average Overweight (x) . | . . . Largest Inventory Capacity 10 | 8 10 10 Average Capacity 9 | 7 8 10 Most Carried 9 | . 9 7 Average Carried 7 | . 8 7 Final Capacity 10 | 8 10 10 Final Carried 7 | . 7 7 Class Distribution -------------------- 100% | Mutant Dominant Class ---------------- Mutant | -10/Materials Mutant | -10/Subcaves Resources | -11 -10 -10 ----------- Run | Yrd Mat Sub Matter Collected 664 | 231 344 89 Remotely . | . . . Salvage Created 670 | . 515 155 Parts 35 | . 27 8 Haulers Intercepted 1 | . 1 . Recyclers Shooed . | . . . Parts Field Recycled . | . . . Retrieved Matter . | . . . Parts Self-Destructed 12 | . . 12 Prevented . | . . . Kills | -11 -10 -10 ------- Run | Yrd Mat Sub Combat Hostiles Destroyed 15 | . 10 5 Guns 11 | . 10 1 AOE 4 | . . 4 Classes Destroyed 4 | . 3 1 Tunneler 1 | . 1 . Hauler 1 | . 1 . Grunt 12 | . 10 2 Subdweller 3 | . . 3 Best Kill Streak 4 | . 4 2 Combat Bots Only 3 | . 3 2 Max Kills in Single Turn 2 | . 2 1 Gunslinging . | . . . Exploded 1 | . . 1 Melee . | . . . Uniques/NPCs Destroyed . | . . . Combat | -11 -10 -10 -------- Run | Yrd Mat Sub Hostile Shots Fired 62 | . 55 7 Missed 19 | . 17 2 Damage Taken 749 | . 634 115 Core 265 | . 199 66 Absorbed by Shields . | . . . Redirected to Shielding 50 | . 50 . Core Remaining (%) 100 | 100 . . Volleys Fired 58 | . 52 6 Largest 2 | . 2 2 Hottest 60 | . 60 60 Shots Fired 109 | . 100 9 Gun 100 | . 96 4 Cannon . | . . . Launcher 9 | . 4 5 Special . | . . . Kinetic 90 | . 88 2 Thermal . | . . . Explosive 9 | . 4 5 Electromagnetic 10 | . 8 2 Robot Hit Streak 14 | . 14 3 Robot Miss Streak 3 | . 3 1 Penetration Max . | . . . Secondary Targets 1 | . . 1 Max Gunslinging Chain 1 | . . 1 Shots Hit Robots 79 | . 73 6 Core Hits 36 | . 30 6 Critical Kills 1 | . 1 . Critical Parts Destroyed . | . . . Critical Strikes 1 | . 1 . Destroy 1 | . 1 . Melee Attacks . | . . . Impact . | . . . Slashing . | . . . Piercing . | . . . Sneak Attacks . | . . . Combat Hostiles . | . . . Follow-up Attacks . | . . . Damage Inflicted 1156 | . 773 383 Guns 640 | . 612 28 Cannons . | . . . Explosions 506 | . 151 355 Melee . | . . . Ramming 10 | . 10 . Kinetic 534 | . 534 . Thermal 183 | . 151 32 Explosive 323 | . . 323 Electromagnetic 106 | . 78 28 Impact . | . . . Slashing . | . . . Piercing . | . . . Highest Corruption 1 | . 1 1 Average Corruption 1 | . 1 1 Corruption Purged . | . . . Corruption Blocked . | . . . Effects 2 | . 2 . Message Errors 1 | . 1 . Data Loss (minor) 1 | . 1 . Overload Shots . | . . . Overflow Damage 35 | . 35 . Projectiles . | . . . Explosions 35 | . 35 . Melee . | . . . Knockbacks . | . . . Impact . | . . . Kinetic . | . . . Secondary . | . . . Self-Inflicted Damage 145 | . 115 30 Shots 4 | . 3 1 Rammed 1 | . 1 . Targets Rammed 1 | . 1 . Kicked . | . . . Crushed . | . . . Highest Temperature 116 | . 116 . Average Temperature 19 | . 19 . Received Heat Transfer 294 | . 267 27 Siege Activations . | . . . Robots Corrupted . | . . . Combat Hostiles . | . . . Parts Fried . | . . . Impact Corruptions . | . . . Robots Melted . | . . . Combat Hostiles . | . . . Parts Melted . | . . . Heat Transferred 250 | . 200 50 Parts Sabotaged . | . . . Parts Stolen . | . . . Parts Stripped . | . . . Power Chain Reactions 2 | . 1 1 Alert | -11 -10 -10 ------- Run | Yrd Mat Sub Peak Influence 277 | . 277 . Initial . | . . . Average 123 | . 131 . Maximum Alert Level 1 | . 1 . Low Security (%) 86 | 100 85 . Level 1 13 | . 14 . Level 2 . | . . . Level 3 . | . . . Level 4 . | . . . Level 5 . | . . . High Security . | . . . Max Security . | . . . Squads Dispatched 3 | . 3 . Investigation 2 | . 2 . Extermination . | . . . Reinforcement 1 | . 1 . Assault . | . . . Garrison . | . . . Intercept . | . . . Searches Triggered . | . . . Construction Impeded . | . . . Haulers Reinforced . | . . . Active Scanning Responses . | . . . Cargo Convoy Interrupts . | . . . Stealth | -11 -10 -10 --------- Run | Yrd Mat Sub Distress Signals 1 | . 1 . Communications Jammed . | . . . Distress Signals . | . . . Times Spotted 29 | . 23 6 Peak Tracking Total 5 | . 5 2 Tactical Retreats 4 | . 4 . Traps | -11 -10 -10 ------- Run | Yrd Mat Sub Traps Triggered 3 | . 3 . Indirectly . | . . . Trap Hack Attempts . | . . . Triggered . | . . . Disarmed . | . . . Reprogrammed . | . . . Reused . | . . . Traps Extracted . | . . . Installed . | . . . Triggered . | . . . Machines | -11 -10 -10 ---------- Run | Yrd Mat Sub Machines Disabled 1 | . 1 . Max in Single Turn 1 | . 1 . Machines Repaired . | . . . Machines Dismantled . | . . . Machines Sabotaged . | . . . Overloaded Fab Kills . | . . . Hacking | -11 -10 -10 --------- Run | Yrd Mat Sub Machines Accessed 2 | . 2 . Terminals 1 | . 1 . Fabricators . | . . . Repair Stations 1 | . 1 . Recycling Units . | . . . Scanalyzers . | . . . Garrison Access . | . . . Total Hacks 2 | . 2 . Successful 2 | . 2 . Failed . | . . . Catastrophic . | . . . Database Lockouts . | . . . Manual 1 | . 1 . Terminals 1 | . 1 . Fabricators . | . . . Repair Stations 1 | . 1 . Recycling Units . | . . . Scanalyzers . | . . . Garrison Access . | . . . Terminal Hacks 1 | . 1 . Zone Layout 1 | . 1 . Fabricator Hacks . | . . . Repair Station Hacks . | . . . Recycling Unit Hacks . | . . . Scanalyzer . | . . . Garrison Access Hacks . | . . . Unauthorized Hacks 1 | . 1 . Terminals . | . . . Fabricators . | . . . Repair Stations 1 | . 1 . Patch 1 | . 1 . Recycling Units . | . . . Scanalyzers . | . . . Garrison Access . | . . . Data Cores Recovered . | . . . Used . | . . . Hacking Detections . | . . . Full Trace Events . | . . . Feedback Events . | . . . Feedback Blocked . | . . . Robot Schematics Acquired . | . . . Robots Built . | . . . Authchips . | . . . Time . | . . . Total Robot Build Rating . | . . . Part Schematics Acquired . | . . . Parts Built . | . . . Authchips . | . . . Time . | . . . Total Part Build Rating . | . . . Parts Repaired . | . . . Time . | . . . Parts Recycled . | . . . Recycled Matter . | . . . Retrieved Matter . | . . . Retrieved Components . | . . . Parts Scanalyzed . | . . . Part Schematics Acquired . | . . . Parts Damaged . | . . . Bothacking | -11 -10 -10 ------------ Run | Yrd Mat Sub Used RIF Installer . | . . . Robots Hacked . | . . . Non-combat . | . . . Combat . | . . . Robot Hacks Applied . | . . . Relay Couplers Released . | . . . Fabnet Peak Effective % . | . . . Robots Rewired . | . . . Allies Hacked . | . . . Hacks Repelled . | . . . Allies | -11 -10 -10 -------- Run | Yrd Mat Sub Total Allies . | . . . Largest Group . | . . . Highest-Rated Group . | . . . Highest-Rated Ally . | . . . Total Orders . | . . . Ally Attacks . | . . . Total Damage . | . . . Kills . | . . . Allies Corrupted . | . . . Allies Melted . | . . . Intel | -11 -10 -10 ------- Run | Yrd Mat Sub Robot Analysis Total . | . . . Derelict Logs Recovered 1 | . . 1 Drone Launches . | . . . Drone Recoveries . | . . . Exploration | -11 -10 -10 ------------- Run | Yrd Mat Sub Turns Passed 1330 | 60 901 369 Spaces Moved 1006 | 52 598 356 Core 1 | 1 . . Treads . | . . . Legs . | . . . Wheels 1005 | 51 598 356 Hover . | . . . Flight . | . . . Fastest Speed 50 | 50 90 90 Average Speed 90 | 99 90 90 Slowest Speed 105 | 100 105 90 Overloaded Moves . | . . . Propulsion Burnouts . | . . . Robots Hopped . | . . . Cave-ins Triggered . | . . . Exploration Rate (%) 42 | 4 91 32 Regions Visited 2 Branch Regions 1 Pre-discovered Areas . | . . . Known Exits Taken . | . . . Unknown Exits Taken 2 | 1 1 . Scrap Searched . | . . . Spaces Dug . | . . . Terrain Destroyed 41 | . 14 27 Melee . | . . . Projectile . | . . . AOE 41 | . 14 27 Terrain Rammed . | . . . Walls Destroyed . | . . . Machines Disabled . | . . . Actions | -11 -10 -10 --------- Run | Yrd Mat Sub Total 1324 | 57 872 395 Wait 225 | . 198 27 Move 1004 | 51 597 356 Hop . | . . . Pick Up 10 | . 10 . Fast Attach 7 | 6 1 . Attach 2 | . 2 . Detach . | . . . Swap 12 | . 6 6 Drop 5 | . 5 . Fire 58 | . 52 6 Melee . | . . . Ram 1 | . 1 . Kick . | . . . Crush . | . . . Escape Stasis . | . . . Rewire . | . . . Trap . | . . . Miscellaneous . | . . . Route ------- -11/Scrapyard -10/Materials (discovered 4 exits: [*Mat x2] / [*Min] / [*Sub]) -10/Subcaves (discovered 1 exit: [*Mat]) History --------- Turn | Location | Event 34 | -11/Scrapyard | Discovered new exit (range 14) 61 | -11/Scrapyard | Entered Materials 192 | -10/Materials | Discovered new exit (range 13) 305 | -10/Materials | Build established: Mutant 590 | -10/Materials | Discovered new exit (range 14) 719 | -10/Materials | Discovered new exit (range 12) 754 | -10/Materials | Core integrity fell below 50% 949 | -10/Materials | Discovered new exit (range 12) 962 | -10/Materials | Entered Subcaves 1004 | -10/Subcaves | Core integrity fell below 20% 1050 | -10/Subcaves | Discovered new exit (range 6) 1123 | -10/Subcaves | A swath of the cavern ceiling suddenly collapsed 1159 | -10/Subcaves | Shifting Twisted Machinery released Piercing Trap 1296 | -10/Subcaves | Learned Materials emergency access door positions 1321 | -10/Subcaves | Shifting Twisted Machinery released Sub. Laser 1331 | -10/Subcaves | Destroyed by BC-6KA(R) with Subdweller Machine Gun Last Messages --------------- 01006_ DM-S43(R) destroyed. 01010_ Acquired 8 matter. 01013_ Acquired 34 matter. 01050_ EXIT=FOUND 01111_ G-47 Trooper destroyed. 01111_ Switching to secondary target: G-34 Mercenary. 01113_ Chain reaction triggered in Ion Engine. 01113_ G-34 Mercenary destroyed. 01120_ Imp. Heat Sink fries itself beyond repair. 01120_ Aluminum Leg fries itself beyond repair. 01121_ Acquired 47 matter. 01123_ 32 Matter crushed. 01123_ Particle Gun crushed. A swath of the cavern ceiling suddenly collapses. Piercing Trap falls loose from the Twisted Machinery. 01296_ Acquired derelict log, extracted data. Data stored: Materials emergency access points. Sub. Laser falls loose from the Twisted Machinery. 01325_ Acquired Sub. Laser. 01330_ PX-FTJ(R) destroyed. Map ----- +----------------------------------------------------+ | ??#### #?????????????? ???????????????? | | ??# #????????????? ????????????????? | | ??# #????????????? ?????????????????? | | ??# #???????????? ??????????????????? | | ??# #???????????? #??????????????????? | | ??# ############ ##?????????????????? | | ??# ## # # #?????????????????? | | ??# ## #??????????????????? | | ??# ## #### ##??????????????????? | | ??## ## # #??####???????????????????? | | ???## ##????????????????????????? | | ????## # #????????????????????????? | | ?????## # ###????????????????????????? | | ??????# ## ####??????????????????????????? | | ??????### ##??????????????????????????? | | ????????## R ##?????????????????????????? | | ?????????# ##????????????????????????? | | ?????????# #????????????????????????? | | ?????????## ####?????????????????????? | | ??????????# ###??????????????????? | | ?????????## ##?????????????????? | | ?????????# %* ####??????????????? | | ????????# & " #??????????????? | | ???????# " #??????????????? | | ??????# """" [""##??????????????? | | ??????## " "" "" @" #???????????????? | | ???????# """"""" ##""##???????????????? | | ???????# """"" # " #???????????????? | | ?????? ## """ ####"" #???????????????? | | ?????? ?##"" #??? " #??????????????? | | ??????? ???" ????"" #??????????????? | | ????????? ???? #??? " #??????????????? | | ????????????? ??????"?## ##??????????????? | | ????????????? ???????????###???????????????? | | ????????????? ??????????????????????????????? | | ????????????????????????????????????????????? | | ????????????????????????????????????????????? | | ????????????????????????????????????????????? | | ????????????????????????????????????????????? | | ????????????????????????????????????????????? | | ????????????????????????????????????????????? | | ????????????????????????????????????????????? | | ????????????????????????????????????????????? | | ????????????????????????????????????????????? | | ????????????????????????????????????????????? | | ????????????????????????????????????????????? | | ????????????????????????????????????????????? | | ????????????????????????????????????????????? | | ????????????????????????????????????????????? | | ????????????????????????????????????????????? | +----------------------------------------------------+ Best States ------------- Heat Dissipation 25 Energy Generation 12 Energy Capacity 265 Matter Stores 300 Matter Capacity 300 Sight Range 16 Terrain Scan Density 10 Weapon Shielding 33 Evasion (%) 42 Item Schematics ----------------- None Robot Schematics ------------------ None Fabricated ------------ Nothing Alien Tech Used ----------------- None Achievements -------------- None Challenges ------------ None Game ------ Seed RefineryFlightFacilitator Manual? 0 Play Time 00:10:14 Cumulative 117.4 hours Start 2024.10.16 @ 08:10:02 End 2024.10.17 @ 20:16:24 Sessions 2 Manual Loads 0 Difficulty Rogue Special Mode None Game No. 199 Rogue 199 Adventurer 0 Explorer 0 Win Type - Total 1 Types 1/0/0/0/0/0/0/0/0 Lore% 51 Gallery% 59 Achievement% 46 Wizard Run 0 Options --------- Layout 0 ASCII 0 Keyboard 1 Movement Numpad Keybinds 0 Fullscreen 2 Font 18/SmallcapsGlow Map View 76x50 Zoom Use 0% Tactical HUD 1 Map Filters NONE Filters NONE Steam 1 RUN: b4cc5142-2f43-49c1-b2fe-a1ce620606fc